fUSD/lending_fUSD_20251225
["ID","MTS","AMOUNT","RATE_DAILY","PERIOD"]
[399799849,1766682646183,-150.0,0.00016307,2]
[399799850,1766682646193,-150.0,0.00016307,2]
[399799851,1766682646203,-150.0,0.00016307,2]
[399799852,1766682646213,-150.0,0.00016307,2]
[399799853,1766682646222,-150.0,0.00016307,2]
[399799854,1766682646231,-150.0,0.00016307,2]
[399799856,1766682646241,-174.03875056,0.00016317,2]
[399799858,1766682646252,-150.0,0.00016322,2]
[399799860,1766682646262,-150.0,0.00016322,2]
[399799862,1766682646271,-150.0,0.00016324,2]
[399799864,1766682646282,-150.0,0.00016327,2]
[399799866,1766682646291,-150.0,0.00016328,2]
[399799868,1766682646302,-8650.44310075,0.00016328,2]
[399799870,1766682646312,-10257.25348525,0.00016328,2]
[399799872,1766682646322,-174.03875056,0.00016334,2]
[399799874,1766682646335,-150.0,0.00016338,2]
[399799876,1766682646348,-150.0,0.00016347,2]
[399799878,1766682646359,-150.0,0.00016349,2]
[399799880,1766682646369,-174.03875056,0.00016351,2]
[399799882,1766682646380,-150.0,0.00016353,2]
[399799884,1766682646390,-150.0,0.00016355,2]
[399799886,1766682646400,-500.0,0.00016358,2]
[399799888,1766682646410,-500.0,0.00016358,2]
[399799890,1766682646420,-534.14774107,0.00016358,2]
[399799892,1766682646430,-500.0,0.00016358,2]
[399799895,1766682646439,-1012.31,0.00016358,2]
[399799897,1766682646449,-500.0,0.00016358,2]
[399799898,1766682646459,-150.0,0.00016359,2]
[399799900,1766682646469,-41325.20904142,0.00016359,2]
[399799903,1766682646479,-583.07830005,0.00016359,2]
[399799904,1766682646489,-150.0,0.0001636,2]
[399799906,1766682646499,-150.0,0.00016367,2]
[399799908,1766682646509,-150.0,0.00016369,2]
[399799910,1766682646519,-174.03875056,0.00016369,2]
[399799913,1766682646530,-150.0,0.00016371,2]
[399799915,1766682646539,-150.0,0.00016382,2]
[399799917,1766682646548,-174.03875056,0.00016386,2]
[399799918,1766682646560,-150.0,0.00016387,2]
[399799919,1766682646570,-150.0,0.00016392,2]
[399799920,1766682646585,-150.0,0.00016395,2]
[399799921,1766682646595,-150.0,0.00016395,2]
[399799922,1766682646606,-150.0,0.000164,2]
[399799923,1766682646616,-228.0,0.000164,2]
[399799924,1766682646626,-319.0,0.000164,2]
[399799925,1766682646636,-182.0,0.000164,2]
[399799926,1766682646646,-184.24951816,0.000164,2]
[399799927,1766682646656,-174.03875056,0.00016403,2]
[399799928,1766682646666,-150.0,0.00016404,2]
[399799929,1766682646676,-150.0,0.00016407,2]
[399799930,1766682646686,-330.87823964,0.0001641,2]
[399799931,1766682646695,-150.0,0.0001641,2]
[399799932,1766682646705,-150.0,0.00016413,2]
[399799933,1766682646716,-150.0,0.0001642,2]
[399799934,1766682646726,-174.03875056,0.0001642,2]
[399799935,1766682646737,-150.0,0.0001642,2]
[399799936,1766682646747,-150.0,0.0001642,2]
[399799937,1766682646757,-266.76,0.00016425,2]
[399799938,1766682646767,-150.0,0.00016427,2]
[399799939,1766682646777,-150.0,0.0001643,2]
[399799940,1766682646786,-150.0,0.00016432,2]
[399799941,1766682646796,-150.0,0.00016434,2]
[399799942,1766682646806,-174.03875056,0.00016437,2]
[399799943,1766682646815,-500.0,0.00016438,2]
[399799944,1766682646826,-500.0,0.00016438,2]
[399799945,1766682646836,-500.0,0.00016438,2]
[399799946,1766682646846,-500.0,0.00016438,2]
[399799947,1766682646856,-500.0,0.00016438,2]
[399799948,1766682646865,-500.0,0.00016438,2]
[399799949,1766682646875,-500.0,0.00016438,2]
[399799950,1766682646884,-500.0,0.00016438,2]
[399799951,1766682646894,-500.0,0.00016438,2]
[399799952,1766682646903,-500.0,0.00016438,2]
[399799953,1766682646913,-500.0,0.00016438,2]
[399799954,1766682646923,-500.0,0.00016438,2]
[399799955,1766682646933,-500.0,0.00016438,2]
[399799956,1766682646943,-500.0,0.00016438,2]
[399799957,1766682646954,-500.0,0.00016438,2]
[399799958,1766682646964,-185.23058312,0.00016438,2]
[399799959,1766682646974,-500.0,0.00016438,2]
[399799960,1766682646984,-500.0,0.00016438,2]
[399799961,1766682646994,-500.0,0.00016438,2]
[399799962,1766682647004,-500.0,0.00016438,2]
[399799963,1766682647014,-500.0,0.00016438,2]
[399799964,1766682647023,-500.0,0.00016438,2]
[399799965,1766682647033,-500.0,0.00016438,2]
[399799966,1766682647043,-500.0,0.00016438,2]
[399799967,1766682647053,-500.0,0.00016438,2]
[399799968,1766682647062,-500.0,0.00016438,2]
[399799969,1766682647072,-500.0,0.00016438,2]
[399799970,1766682647082,-500.0,0.00016438,2]
[399799971,1766682647092,-500.0,0.00016438,2]
[399799972,1766682647101,-500.0,0.00016438,2]
[399799973,1766682647112,-500.0,0.00016438,2]
[399799974,1766682647123,-500.0,0.00016438,2]
[399799975,1766682647133,-500.0,0.00016438,2]
[399799976,1766682647144,-529.5463177,0.00016438,2]
[399799977,1766682647154,-529.5463177,0.00016438,2]
[399799978,1766682647164,-529.5463177,0.00016438,2]
[399799979,1766682647174,-529.5463177,0.00016438,2]
[399799980,1766682647185,-529.5463177,0.00016438,2]
[399799981,1766682647195,-529.5463177,0.00016438,2]
[399799982,1766682647205,-529.5463177,0.00016438,2]
[399799983,1766682647215,-529.5463177,0.00016438,2]
[399799984,1766682647225,-529.5463177,0.00016438,2]
[399799985,1766682647235,-529.5463177,0.00016438,2]
[399799986,1766682647245,-529.5463177,0.00016438,2]
[399799987,1766682647255,-529.5463177,0.00016438,2]
[399799988,1766682647265,-529.5463177,0.00016438,2]
[399799989,1766682647274,-529.5463177,0.00016438,2]
[399799990,1766682647284,-529.5463177,0.00016438,2]
[399799991,1766682647294,-529.5463177,0.00016438,2]
[399799992,1766682647305,-529.5463177,0.00016438,2]
[399799993,1766682647315,-529.5463177,0.00016438,2]
[399799994,1766682647325,-529.5463177,0.00016438,2]
[399799995,1766682647339,-529.5463177,0.00016438,2]
[399799996,1766682647349,-529.5463177,0.00016438,2]
[399799997,1766682647359,-529.5463177,0.00016438,2]
[399799998,1766682647372,-529.5463177,0.00016438,2]
[399799999,1766682647382,-529.5463177,0.00016438,2]
[399800000,1766682647393,-529.5463177,0.00016438,2]
[399800001,1766682647403,-529.5463177,0.00016438,2]
[399800002,1766682647413,-529.5463177,0.00016438,2]
[399800003,1766682647423,-529.5463177,0.00016438,2]
[399800004,1766682647433,-529.5463177,0.00016438,2]
[399800005,1766682647443,-529.5463177,0.00016438,2]
[399800006,1766682647454,-529.5463177,0.00016438,2]
[399800007,1766682647464,-529.5463177,0.00016438,2]
[399800008,1766682647474,-529.5463177,0.00016438,2]
[399800009,1766682647484,-529.5463177,0.00016438,2]
[399800010,1766682647495,-529.5463177,0.00016438,2]
[399800011,1766682647505,-529.5463177,0.00016438,2]
[399800012,1766682647515,-529.5463177,0.00016438,2]
[399800013,1766682647525,-529.5463177,0.00016438,2]
[399800014,1766682647535,-529.5463177,0.00016438,2]
[399800015,1766682647545,-529.5463177,0.00016438,2]
[399800016,1766682647556,-529.5463177,0.00016438,2]
[399800017,1766682647566,-529.5463177,0.00016438,2]
[399800018,1766682647781,-529.5463177,0.00016438,2]
[399800019,1766682647792,-529.5463177,0.00016438,2]
[399800020,1766682647803,-529.5463177,0.00016438,2]
[399800021,1766682647813,-529.5463177,0.00016438,2]
[399800022,1766682647823,-529.5463177,0.00016438,2]
[399800023,1766682647835,-529.5463177,0.00016438,2]
[399800024,1766682647845,-529.5463177,0.00016438,2]
[399800025,1766682647855,-529.5463177,0.00016438,2]
[399800026,1766682647866,-529.5463177,0.00016438,2]
[399800027,1766682647876,-529.5463177,0.00016438,2]
[399800028,1766682647886,-529.5463177,0.00016438,2]
[399800029,1766682647898,-529.5463177,0.00016438,2]
[399800030,1766682647909,-529.5463177,0.00016438,2]
[399800031,1766682647918,-529.5463177,0.00016438,2]
[399800032,1766682647929,-529.5463177,0.00016438,2]
[399800033,1766682647938,-500.0,0.00016438,2]
[399800034,1766682647949,-809.0,0.00016438,2]
[399800035,1766682647959,-800.0,0.00016438,2]
[399800036,1766682647969,-716.0,0.00016438,2]
[399800037,1766682647980,-150.0,0.00016439,2]
[399800038,1766682647991,-150.0,0.00016447,2]
[399800039,1766682648005,-150.0,0.0001645,2]
[399800040,1766682648015,-150.0,0.00016452,2]
[399800041,1766682648026,-174.03875056,0.00016454,2]
[399800042,1766682648036,-150.0,0.00016455,2]
[399800043,1766682648047,-150.0,0.00016461,2]
[399800044,1766682648057,-500.0,0.00016465,2]
[399800045,1766682648067,-150.0,0.00016467,2]
[399800046,1766682648078,-150.0,0.00016468,2]
[399800047,1766682648090,-150.0,0.00016469,2]
[399800048,1766682648100,-150.0,0.00016469,2]
[399800049,1766682648111,-174.03875056,0.00016472,2]
[399800050,1766682648122,-150.0,0.00016477,2]
[399800051,1766682648132,-150.0,0.00016487,2]
[399800052,1766682648142,-174.03875056,0.00016489,2]
[399800053,1766682648152,-341.0,0.0001649,2]
[399800054,1766682648163,-150.0,0.00016492,2]
[399800055,1766682648173,-500.0,0.00016493,2]
[399800056,1766682648185,-150.0,0.00016497,2]
[399800057,1766682648197,-150.0,0.00016498,2]
[399800058,1766682648207,-150.0,0.00016501,2]
[399800059,1766682648216,-341.0,0.00016504,2]
[399800060,1766682648227,-174.03875056,0.00016506,2]
[399800061,1766682648237,-150.0,0.00016506,2]
[399800062,1766682648247,-150.0,0.00016507,2]
[399800063,1766682648257,-8650.44310075,0.00016519,2]
[399800064,1766682648267,-10257.25348525,0.00016519,2]
[399800065,1766682648279,-150.0,0.00016519,2]
[399800066,1766682648289,-500.0,0.0001652,2]
[399800067,1766682648299,-150.0,0.00016523,2]
[399800068,1766682648309,-174.03875056,0.00016523,2]
[399800069,1766682648319,-150.0,0.00016523,2]
[399800070,1766682648333,-152.0,0.00016523,2]
[399800071,1766682648344,-150.891,0.00016523,2]
[399800072,1766682648354,-217.814,0.00016523,2]
[399800073,1766682648364,-256.083,0.00016523,2]
[399800074,1766682648375,-250.0,0.00016523,2]
[399800075,1766682648384,-156.406,0.00016523,2]
[399800076,1766682648394,-243.792,0.00016523,2]
[399800077,1766682648405,-150.0,0.00016523,2]
[399800078,1766682648415,-150.0,0.00016523,2]
[399800079,1766682648425,-150.0,0.00016523,2]
[399800080,1766682648435,-150.0,0.00016523,2]
[399800081,1766682648444,-618.307,0.00016523,2]
[399800082,1766682648454,-3459.0,0.00016523,2]
[399800083,1766682648464,-1610.0,0.00016523,2]
[399800084,1766682648475,-1271.446,0.00016523,2]
[399800085,1766682648484,-432.0,0.00016523,2]
[399800086,1766682648495,-919.814,0.00016523,2]
[399800087,1766682648506,-1211.891,0.00016523,2]
[399800088,1766682648516,-2430.0,0.00016523,2]
[399800089,1766682648526,-564.0,0.00016523,2]
[399800090,1766682648536,-4807.0,0.00016523,2]
[399800091,1766682648546,-150.0,0.00016526,2]
[399800092,1766682648556,-150.0,0.00016527,2]
[399800093,1766682648566,-341.0,0.00016528,2]
[399800094,1766682648576,-150.0,0.00016533,2]
[399800095,1766682648586,-2624.0,0.00016537,2]
[399800096,1766682648596,-341.0,0.00016539,2]
[399800097,1766682648606,-150.0,0.00016539,2]
[399800098,1766682648618,-174.03875056,0.0001654,2]
[399800099,1766682648628,-150.0,0.0001654,2]
[399800100,1766682648639,-150.0,0.00016543,2]
[399800101,1766682648649,-150.0,0.00016543,2]
[399800102,1766682648659,-341.0,0.00016547,2]
[399800103,1766682648669,-150.0,0.00016547,2]
[399800104,1766682648680,-150.0,0.0001655,2]
[399800105,1766682648690,-150.0,0.00016554,2]
[399800106,1766682648700,-150.0,0.00016554,2]
[399800107,1766682648711,-174.03875056,0.00016557,2]
[399800108,1766682648721,-150.0,0.00016562,2]
[399800109,1766682648732,-150.0,0.00016562,2]
[399800110,1766682648743,-150.0,0.00016567,2]
[399800111,1766682648753,-174.03875056,0.00016575,2]
[399800112,1766682648764,-150.0,0.0001658,2]
[399800113,1766682648774,-150.0,0.00016583,2]
[399800114,1766682648787,-150.0,0.00016583,2]
[399800115,1766682648799,-150.0,0.00016585,2]
[399800116,1766682648811,-150.0,0.00016587,2]
[399800117,1766682648821,-174.03875056,0.00016592,2]
[399800118,1766682648832,-150.0,0.00016598,2]
[399800119,1766682648842,-341.0,0.00016604,2]
[399800120,1766682648852,-150.0,0.00016604,2]
[399800121,1766682648864,-150.0,0.00016607,2]
[399800122,1766682648874,-174.03875056,0.00016609,2]
[399800123,1766682648884,-150.0,0.00016612,2]
[399800124,1766682648894,-150.0,0.00016616,2]
[399800125,1766682648905,-150.0,0.00016617,2]
[399800126,1766682648915,-150.0,0.00016617,2]
[399800127,1766682648925,-341.0,0.00016624,2]
[399800128,1766682648936,-150.0,0.00016625,2]
[399800129,1766682648945,-174.03875056,0.00016626,2]
[399800130,1766682648956,-150.0,0.00016627,2]
[399800131,1766682648966,-150.0,0.00016629,2]
[399800132,1766682648976,-150.0,0.00016641,2]
[399800133,1766682648986,-174.03875056,0.00016643,2]
[399800134,1766682648995,-1848.0,0.00016646,2]
[399800135,1766682649005,-150.0,0.00016647,2]
[399800136,1766682649016,-150.0,0.00016647,2]
[399800137,1766682649026,-150.0,0.00016647,2]
[399800138,1766682649036,-150.0,0.00016647,2]
[399800139,1766682649047,-150.0,0.00016647,2]
[399800140,1766682649057,-150.0,0.00016647,2]
[399800141,1766682649067,-150.0,0.00016654,2]
[399800142,1766682649077,-330.87823964,0.00016655,2]
[399800143,1766682649087,-5641.67511625,0.0001666,2]
[399800144,1766682649097,-174.03875056,0.0001666,2]
[399800145,1766682649107,-150.0,0.00016667,2]
[399800146,1766682649118,-150.0,0.00016668,2]
[399800147,1766682649128,-150.0,0.0001667,2]
[399800148,1766682649139,-150.0,0.00016677,2]
[399800149,1766682649149,-174.03875056,0.00016677,2]
[399800150,1766682649159,-150.0,0.00016687,2]
[399800151,1766682649170,-150.0,0.00016689,2]
[399800152,1766682649180,-150.0,0.00016691,2]
[399800153,1766682649191,-150.0,0.00016691,2]
[399800154,1766682649202,-174.03875056,0.00016695,2]
[399800155,1766682649212,-150.0,0.00016695,2]
[399800156,1766682649223,-595.37131296,0.00016697,2]
[399800157,1766682649233,-150.0,0.00016698,2]
[399800158,1766682649243,-266.80299728,0.00016699,2]
[399800159,1766682649254,-150.0,0.00016703,2]
[399800160,1766682649265,-1848.0,0.00016705,2]
[399800161,1766682649276,-150.0,0.00016707,2]
[399800162,1766682649287,-150.0,0.00016708,2]
[399800163,1766682649298,-8650.44310075,0.00016709,2]
[399800164,1766682649308,-10257.25348525,0.00016709,2]
[399800165,1766682649318,-150.0,0.0001671,2]
[399800166,1766682649331,-174.03875056,0.00016712,2]
[399800167,1766682649342,-150.0,0.00016718,2]
[399800168,1766682649352,-150.0,0.00016727,2]
[399800169,1766682649363,-150.0,0.00016727,2]
[399800170,1766682649375,-150.0,0.00016728,2]
[399800171,1766682649385,-174.03875056,0.00016729,2]
[399800172,1766682649395,-1000.0,0.00016731,2]
[399800173,1766682649407,-500.0,0.00016731,2]
[399800174,1766682649417,-598.60555363,0.00016731,2]
[399800175,1766682649427,-500.0,0.00016731,2]
[399800176,1766682649437,-500.0,0.00016731,2]
[399800177,1766682649448,-500.0,0.00016731,2]
[399800178,1766682649459,-559.28446362,0.00016731,2]
[399800179,1766682649469,-308.61264672,0.00016731,2]
[399800180,1766682649480,-500.0,0.00016731,2]
[399800181,1766682649490,-500.0,0.00016731,2]
[399800182,1766682649500,-500.0,0.00016731,2]
[399800183,1766682649510,-207.3850141,0.00016731,2]
[399800184,1766682649520,-500.0,0.00016731,2]
[399800185,1766682649530,-500.0,0.00016731,2]
[399800186,1766682649540,-500.0,0.00016731,2]
[399800187,1766682649549,-500.0,0.00016731,2]
[399800188,1766682649559,-500.0,0.00016731,2]
[399800189,1766682649570,-500.0,0.00016731,2]
[399800190,1766682649581,-500.0,0.00016731,2]
[399800191,1766682649591,-500.0,0.00016731,2]
[399800192,1766682649602,-150.0,0.00016732,2]
[399800193,1766682649612,-150.0,0.00016739,2]
[399800194,1766682649623,-150.0,0.00016744,2]
[399800195,1766682649633,-174.03875056,0.00016746,2]
[399800196,1766682649644,-150.0,0.00016746,2]
[399800197,1766682649654,-150.0,0.00016753,2]
[399800198,1766682649664,-150.0,0.00016756,2]
[399800199,1766682649674,-341.0,0.00016757,2]
[399800200,1766682649684,-150.0,0.0001676,2]
[399800201,1766682649695,-174.03875056,0.00016763,2]
[399800202,1766682649706,-150.0,0.00016765,2]
[399800203,1766682649716,-150.0,0.00016765,2]
[399800204,1766682649727,-150.0,0.00016766,2]
[399800205,1766682649737,-17528.555,0.00016767,2]
[399800206,1766682649747,-1000.0,0.00016767,2]
[399800207,1766682649757,-150.0,0.0001677,2]
[399800208,1766682649767,-150.0,0.00016774,2]
[399800209,1766682649777,-174.03875056,0.0001678,2]
[399800210,1766682649806,-150.0,0.00016785,2]
[399800211,1766682649821,-150.0,0.00016786,2]
[399800212,1766682649833,-150.0,0.00016792,2]
[399800213,1766682649844,-150.0,0.00016795,2]
[399800214,1766682649856,-174.03875056,0.00016798,2]
[399800215,1766682649867,-150.0,0.00016801,2]
[399800216,1766682649879,-150.0,0.00016802,2]
[399800217,1766682649890,-150.0,0.00016806,2]
[399800218,1766682649901,-150.0,0.00016807,2]
[399800219,1766682649913,-150.0,0.00016814,2]
[399800220,1766682649924,-174.03875056,0.00016815,2]
[399800221,1766682649935,-150.0,0.00016816,2]
[399800222,1766682649946,-150.0,0.00016826,2]
[399800223,1766682649957,-926.45060488,0.0001683,2]
[399800224,1766682649969,-150.0,0.00016832,2]
[399800225,1766682649980,-174.03875056,0.00016832,2]
[399800226,1766682649991,-150.0,0.00016838,2]
[399800227,1766682650002,-150.0,0.00016839,2]
[399800228,1766682650013,-150.0,0.00016839,2]
[399800229,1766682650026,-150.0,0.00016841,2]
[399800230,1766682650037,-150.0,0.00016842,2]
[399800231,1766682650049,-150.0,0.00016845,2]
[399800232,1766682650060,-150.0,0.00016846,2]
[399800233,1766682650070,-174.03875056,0.00016849,2]
[399800234,1766682650081,-150.0,0.00016859,2]
[399800235,1766682650093,-150.0,0.00016863,2]
[399800236,1766682650103,-200.0,0.00016864,2]
[399800237,1766682650114,-174.03875056,0.00016866,2]
[399800238,1766682650125,-150.0,0.00016866,2]
[399800239,1766682650137,-150.0,0.00016871,2]
[399800240,1766682650154,-481.42,0.00016872,2]
[399800241,1766682650164,-150.0,0.00016873,2]
[399800242,1766682650175,-150.0,0.00016876,2]
[399800243,1766682650185,-150.0,0.0001688,2]
[399800244,1766682650197,-174.03875056,0.00016883,2]
[399800245,1766682650209,-150.0,0.00016886,2]
[399800246,1766682650220,-150.0,0.00016889,2]
[399800247,1766682650231,-25000.0,0.00016891,3]
[399800248,1766682650241,-25000.0,0.00016891,3]
[399800249,1766682650252,-150.0,0.00016894,2]
[399800250,1766682650263,-150.0,0.00016897,2]
[399800251,1766682650274,-500.0,0.00016899,2]
[399800252,1766682650284,-514.26394542,0.00016899,2]
[399800253,1766682650295,-500.0,0.00016899,2]
[399800254,1766682650306,-500.0,0.00016899,2]
[399800255,1766682650317,-500.0,0.00016899,2]
[399800256,1766682650331,-183.93452706,0.00016899,2]
[399800257,1766682650342,-500.0,0.00016899,2]
[399800258,1766682650353,-1012.31,0.00016899,2]
[399800259,1766682650365,-150.0,0.000169,2]
[399800260,1766682650514,-25000.0,0.000169,3]
[399800261,1766682650524,-10000.0,0.000169,2]
[399800262,1766682650536,-25000.0,0.000169,3]
[399800263,1766682650546,-170.28248417,0.000169,2]
[399800264,1766682650557,-4332.11846044,0.000169,2]
[399800265,1766682650567,-1926.43051864,0.000169,3]
[399800266,1766682650577,-330.87823964,0.000169,2]
[399800267,1766682650587,-156.81485744,0.000169,2]
[399800268,1766682650598,-8650.44310075,0.000169,2]
[399800269,1766682650608,-12903.38147044,0.000169,2]
[399800270,1766682650619,-1000.0,0.000169,2]
[399800271,1766682650630,-10257.25348525,0.000169,2]
[399800272,1766682650640,-10986.0,0.000169,2]
[399800273,1766682650650,-174.03875056,0.00016901,2]
[399800274,1766682650661,-150.0,0.00016901,2]
[399800275,1766682650672,-150.0,0.00016906,2]
[399800276,1766682650683,-188.55950753,0.00016909,2]
[399800277,1766682650693,-150.0,0.00016912,2]
[399800278,1766682650705,-150.0,0.00016912,2]
[399800279,1766682650718,-174.03875056,0.00016918,2]
[399800280,1766682650729,-150.0,0.00016923,2]
[399800281,1766682650741,-150.0,0.00016925,2]
[399800282,1766682650752,-150.0,0.00016926,2]
[399800283,1766682650763,-150.0,0.00016929,2]
[399800284,1766682650775,-174.03875056,0.00016935,2]
[399800285,1766682650786,-150.0,0.00016938,2]
[399800286,1766682650797,-150.0,0.00016944,2]
[399800287,1766682650808,-150.0,0.00016946,2]
[399800288,1766682650819,-150.0,0.00016949,2]
[399800289,1766682650832,-174.03875056,0.00016952,2]
[399800290,1766682650847,-150.0,0.00016955,2]
[399800291,1766682650857,-1000.0,0.00016956,2]
[399800292,1766682650867,-1000.0,0.00016956,2]
[399800293,1766682650877,-1000.0,0.00016956,2]
[399800294,1766682650887,-1000.0,0.00016956,2]
[399800295,1766682650897,-1000.0,0.00016956,2]
[399800296,1766682650908,-1000.0,0.00016956,2]
[399800297,1766682650918,-1000.0,0.00016956,2]
[399800298,1766682650928,-1000.0,0.00016956,2]
[399800299,1766682650938,-1000.0,0.00016956,2]
[399800300,1766682650948,-1000.0,0.00016956,2]
[399800301,1766682650958,-347.511,0.00016956,2]
[399800302,1766682650968,-150.0,0.00016958,2]
[399800303,1766682650979,-3899.0,0.00016959,2]
[399800304,1766682650990,-150.0,0.00016965,2]
[399800305,1766682651001,-150.0,0.00016966,2]
[399800306,1766682651011,-174.03875056,0.00016969,2]
[399800307,1766682651021,-500.0,0.0001697,2]
[399800308,1766682651031,-800.78551976,0.0001697,2]
[399800309,1766682651041,-505.30351694,0.00016983,2]
[399800310,1766682651053,-254.60367392,0.00016986,2]
[399800311,1766682651063,-199.93327437,0.00016986,2]
[399800312,1766682651074,-159.80056787,0.00016986,2]
[399800313,1766682651086,-221.88950026,0.00016986,2]
[399800314,1766682651097,-171.10828189,0.00016986,2]
[399800315,1766682651108,-298.55759469,0.00016986,2]
[399800316,1766682651119,-174.03875056,0.00016986,2]
[399800317,1766682651129,-199.77046781,0.00016986,2]
[399800318,1766682651139,-250.03401256,0.00016986,2]
[399800319,1766682651150,-195.8030936,0.00016986,2]
[399800320,1766682651161,-176.41435158,0.00016986,2]
[399800321,1766682651171,-270.36367615,0.00016986,2]
[399800322,1766682651182,-284.4666085,0.00016986,2]
[399800323,1766682651192,-245.69368063,0.00016986,2]
[399800324,1766682651201,-1163.63434403,0.0001699,2]
[399800325,1766682651215,-1163.63434403,0.0001699,2]
[399800326,1766682651225,-7193.74045746,0.00016999,2]
[399800327,1766682651235,-1060.87558749,0.00016999,5]
[399800328,1766682651245,-300.0,0.00016999,2]
[399800329,1766682651255,-500.0,0.00016999,2]
[399800330,1766682651265,-300.0,0.00016999,2]
[399800331,1766682651276,-167.21477836,0.00016999,2]
[399800332,1766682651285,-300.0,0.00016999,2]
[399800333,1766682651295,-300.0,0.00016999,2]
[399800334,1766682651306,-300.0,0.00016999,2]
[399800335,1766682651317,-666.0,0.00016999,2]
[399800336,1766682651327,-500.0,0.00016999,2]
[399800337,1766682651340,-500.0,0.00016999,2]
[399800338,1766682651350,-500.0,0.00016999,2]
[399800339,1766682651360,-500.0,0.00016999,2]
[399800340,1766682651370,-500.0,0.00016999,2]
[399800341,1766682651380,-500.0,0.00016999,2]
[399800342,1766682651390,-500.0,0.00016999,2]
[399800343,1766682651401,-500.0,0.00016999,2]
[399800344,1766682651411,-500.0,0.00016999,2]
[399800345,1766682651421,-500.0,0.00016999,2]
[399800346,1766682651431,-500.0,0.00016999,2]
[399800347,1766682651441,-500.0,0.00016999,2]
[399800348,1766682651451,-500.0,0.00016999,2]
[399800349,1766682651461,-500.0,0.00016999,2]
[399800350,1766682651471,-500.0,0.00016999,2]
[399800351,1766682651481,-500.0,0.00016999,2]
[399800352,1766682651491,-340.27167877,0.00016999,2]
[399800353,1766682651500,-1012.31,0.00016999,2]
[399800354,1766682651510,-1012.31,0.00016999,2]
[399800355,1766682651520,-1012.31,0.00016999,2]
[399800356,1766682651530,-1012.31,0.00016999,2]
[399800357,1766682651540,-1012.31,0.00016999,2]
[399800358,1766682651550,-1012.31,0.00016999,2]
[399800359,1766682651561,-1012.31,0.00016999,2]
[399800360,1766682651571,-1012.31,0.00016999,2]
[399800361,1766682651586,-1012.31,0.00016999,2]
[399800362,1766682651596,-1012.31,0.00016999,2]
[399800363,1766682651607,-1012.31,0.00016999,2]
[399800364,1766682651617,-1012.31,0.00016999,2]
[399800365,1766682651627,-1012.31,0.00016999,2]
[399800366,1766682651637,-1012.31,0.00016999,2]
[399800367,1766682651647,-1012.31,0.00016999,2]
[399800368,1766682651657,-1012.31,0.00016999,2]
[399800369,1766682651667,-1012.31,0.00016999,2]
[399800370,1766682651677,-1012.45767856,0.00016999,2]
[399800371,1766682651687,-3491740.82210867,0.00017,2]
[399800372,1766682651696,-1119225.40709903,0.00017,2]
[399800373,1766682652148,-7869.11312225,0.00017,2]
[399800374,1766682652662,-6534.0,0.00016523,2]
[399800375,1766682652673,-789.11969302,0.000169,2]
[399800376,1766682652683,-3288.24976832,0.00017,2]
[399800377,1766682652718,-2976.63055664,0.00017,2]
[399800378,1766682653270,-564.931296,0.00017,2]
[399800379,1766682653310,-880.4,0.00017,2]
[399800380,1766682653325,-1090431.63045274,0.00017,2]